Cogmind - Beta 13 @@@ ROGUE MODE // 2024.04.01 @ 16:05:55 Player: TFLwolf Result: Destroyed by as-89302 with Assembled Maul Performance ------------- Evolutions (0) 0 Regions Visited (4) 800 Robots Destroyed (14) 70 Value Destroyed (285) 285 Prototype IDs (0) 0 Alien Tech Used (0) 0 Bonus (0) 0 TOTAL SCORE: 1155 Bonus ------- None Cogmind --------- Core Integrity 0/250 Matter 273/300 Energy 100/100 System Corruption 11% Temperature Cool (0) Movement Core (50) Location -9/Mines Parts ------- > --- POWER (1) -------- (None) > --- PROPULSION (2) --- (None) > --- UTILITY (2) ------ Targeting Computer > --- WEAPON (2) ------- (None) > --- INVENTORY (5) ---- Medium Storage Unit ECM Suite Mining Laser Peak State ------------ > --- POWER ------------ Light Ion Engine > --- PROPULSION ------- Wheel Wheel > --- UTILITY ---------- Targeting Computer Hardened Light Armor Plating > --- WEAPON ----------- Small Laser Grenade Launcher > --- INVENTORY -------- Medium Storage Unit ECM Suite Mining Laser [Rating: 8] Favorites ----------- Power Light Ion Engine Engine Light Ion Engine Propulsion Wheel Leg Aluminum Leg Wheel Wheel Utility Targeting Computer Device ECM Suite Storage Medium Storage Unit Processor Targeting Computer Protection Hardened Light Armor Plating Weapon Grenade Launcher Energy Gun Small Laser Ballistic Gun Assault Rifle Launcher Grenade Launcher Build | -11 -10 -10 -10 -9 ------- Run | Yrd Mat Min Exi Min Slots Evolved . | . . . . . Power . | . . . . . Propulsion . | . . . . . Utility . | . . . . . Weapon . | . . . . . Parts Attached 17 | 6 5 4 1 1 Power 2 | 1 . 1 . . Engine 2 | 1 . 1 . . Core . | . . . . . Reactor . | . . . . . Propulsion 5 | 2 2 1 . . Treads . | . . . . . Leg 2 | 2 . . . . Wheel 3 | . 2 1 . . Hover . | . . . . . Flight . | . . . . . Utility 6 | 1 2 1 1 1 Device 3 | 1 1 1 . . Storage 1 | . . . 1 . Processor 1 | . 1 . . . Hackware . | . . . . . Protection 1 | . . . . 1 Artifact . | . . . . . Weapon 4 | 2 1 1 . . Energy Gun 1 | . . 1 . . Energy Cannon . | . . . . . Ballistic Gun 2 | 2 . . . . Ballistic Cannon . | . . . . . Launcher 1 | . 1 . . . Special Weapon . | . . . . . Impact Weapon . | . . . . . Slashing Weapon . | . . . . . Piercing Weapon . | . . . . . Special Melee Weapon . | . . . . . Unidentified Prototypes . | . . . . . Parts Lost 7 | . . 2 . 5 Power 1 | . . 1 . . Propulsion 3 | . . 1 . 2 Utility 1 | . . . . 1 Weapon 2 | . . . . 2 Highest Loss Streak 5 | . . 2 . 5 To Critical Strikes 1 | . . . . 1 Average Slot Usage (%) 88 | . 86 81 100 85 Engine 11 | . 14 6 14 14 Leg 6 | . 23 . . . Wheel 19 | . 4 22 28 21 Device 8 | . 14 8 4 . Storage 3 | . . . 9 3 Processor 10 | . 1 14 14 14 Energy Gun 8 | . . 10 14 10 Ballistic Gun 6 | . 21 3 . . Launcher 12 | . 7 14 14 14 Naked Turns . | . . . . . Heaviest Build 17 | 7 10 10 17 17 Greatest Support 20 | 20 20 20 20 20 Greatest Overweight (x) . | . . . . . Average Overweight (x) . | . . . . . Largest Inventory Capacity 10 | 5 5 5 10 10 Average Capacity 5 | 5 5 5 8 6 Most Carried 5 | 4 5 5 3 4 Average Carried 2 | 2 3 2 1 3 Final Capacity 10 | 5 5 5 10 5 Final Carried 3 | 3 3 1 2 3 Class Distribution -------------------- 100% | Mutant Dominant Class ---------------- Mutant | -10/Materials Mutant | -10/Mines Mutant | -10/Exiles Mutant | -9/Mines Resources | -11 -10 -10 -10 -9 ----------- Run | Yrd Mat Min Exi Min Matter Collected 542 | 296 20 195 . 31 Remotely . | . . . . . Salvage Created 316 | 37 44 194 . 41 Parts 27 | 3 8 16 . . Haulers Intercepted . | . . . . . Recyclers Shooed 1 | . . 1 . . Parts Field Recycled . | . . . . . Retrieved Matter . | . . . . . Parts Self-Destructed . | . . . . . Prevented . | . . . . . Kills | -11 -10 -10 -10 -9 ------- Run | Yrd Mat Min Exi Min Combat Hostiles Destroyed 24 | 1 3 7 . 13 Guns 8 | 1 3 3 . 1 AOE 16 | . . 4 . 12 Classes Destroyed 5 | 1 1 2 . 1 Builder 1 | . . 1 . . Tunneler 2 | . . 2 . . Swarmer 6 | . 3 3 . . Grunt 5 | 1 . 4 . . Assembled 13 | . . . . 13 Best Kill Streak 13 | 1 3 5 . 13 Combat Bots Only 13 | 1 3 5 . 13 Max Kills in Single Turn 5 | 1 1 2 . 5 Gunslinging . | . . . . . Exploded 5 | . . 2 . 5 Melee . | . . . . . Uniques/NPCs Destroyed . | . . . . . Combat | -11 -10 -10 -10 -9 -------- Run | Yrd Mat Min Exi Min Hostile Shots Fired 86 | 11 16 18 . 41 Missed 24 | 3 5 4 . 12 Damage Taken 849 | 88 84 182 . 495 Core 252 | 22 6 31 . 193 Absorbed by Shields . | . . . . . Core Remaining (%) 91 | 91 . . . . Volleys Fired 49 | 9 5 28 . 7 Largest 2 | 2 2 2 . 2 Hottest 70 | 40 40 50 . 70 Shots Fired 69 | 18 10 32 . 9 Gun 53 | 18 10 22 . 3 Cannon . | . . . . . Launcher 16 | . . 10 . 6 Special . | . . . . . Kinetic 35 | 18 10 7 . . Thermal 18 | . . 15 . 3 Explosive 16 | . . 10 . 6 Electromagnetic . | . . . . . Robot Hit Streak 6 | 4 2 6 . 4 Robot Miss Streak 3 | 3 2 2 . . Penetration Max . | . . . . . Secondary Targets . | . . . . . Shots Hit Robots 34 | 9 5 18 . 2 Core Hits 50 | 2 3 16 . 29 Critical Kills . | . . . . . Critical Parts Destroyed . | . . . . . Critical Strikes . | . . . . . Melee Attacks . | . . . . . Impact . | . . . . . Slashing . | . . . . . Piercing . | . . . . . Sneak Attacks . | . . . . . Combat Hostiles . | . . . . . Follow-up Attacks . | . . . . . Damage Inflicted 1522 | 117 58 594 . 753 Guns 366 | 117 56 171 . 22 Cannons . | . . . . . Explosions 1144 | . . 415 . 729 Melee . | . . . . . Ramming 12 | . 2 8 . 2 Kinetic 232 | 117 56 59 . . Thermal 134 | . . 112 . 22 Explosive 1144 | . . 415 . 729 Electromagnetic . | . . . . . Impact . | . . . . . Slashing . | . . . . . Piercing . | . . . . . Highest Corruption 11 | . 2 3 3 11 Average Corruption 2 | . 2 2 3 5 Corruption Purged . | . . . . . Corruption Blocked . | . . . . . Effects 11 | . 1 4 4 2 Message Errors 2 | . 1 1 . . Matter Fused 2 | . . . 2 . Heat Flow Errors 1 | . . . 1 . Energy Discharges 2 | . . 1 1 . Parts Rejected 1 | . . . . 1 Data Loss (minor) 1 | . . 1 . . Misfires 1 | . . 1 . . Weapon Failures 1 | . . . . 1 Overload Shots . | . . . . . Overflow Damage 32 | . . . . 32 Projectiles . | . . . . . Explosions 32 | . . . . 32 Melee . | . . . . . Knockbacks 1 | . . 1 . . Impact 1 | . . 1 . . Kinetic . | . . . . . Secondary . | . . . . . Self-Inflicted Damage 18 | . . 17 . 1 Shots 2 | . . 2 . . Rammed 3 | . . 1 . 2 Targets Rammed 4 | . 1 1 . 2 Kicked 1 | . 1 . . . Crushed . | . . . . . Highest Temperature 172 | 12 . 5 172 62 Average Temperature 34 | 6 . 2 92 32 Received Heat Transfer 166 | 48 . 78 . 40 Siege Activations . | . . . . . Robots Corrupted . | . . . . . Combat Hostiles . | . . . . . Parts Fried . | . . . . . Impact Corruptions . | . . . . . Robots Melted . | . . . . . Combat Hostiles . | . . . . . Parts Melted . | . . . . . Heat Transferred 300 | . . 250 . 50 Parts Sabotaged . | . . . . . Parts Stolen . | . . . . . Parts Stripped . | . . . . . Power Chain Reactions . | . . . . . Alert | -11 -10 -10 -10 -9 ------- Run | Yrd Mat Min Exi Min Peak Influence 280 | 20 83 280 . 30 Initial 31 | . 13 31 . . Average 119 | 6 61 247 . 8 Maximum Alert Level 1 | . . 1 . . Low Security (%) 64 | 100 100 13 . 100 Level 1 35 | . . 86 . . Level 2 . | . . . . . Level 3 . | . . . . . Level 4 . | . . . . . Level 5 . | . . . . . High Security . | . . . . . Max Security . | . . . . . Squads Dispatched 3 | . 3 . . . Investigation . | . . . . . Extermination . | . . . . . Reinforcement 3 | . 3 . . . Assault . | . . . . . Garrison . | . . . . . Intercept . | . . . . . Searches Triggered . | . . . . . Construction Impeded . | . . . . . Haulers Reinforced . | . . . . . Active Scanning Responses . | . . . . . Cargo Convoy Interrupts . | . . . . . Stealth | -11 -10 -10 -10 -9 --------- Run | Yrd Mat Min Exi Min Distress Signals . | . . . . . Communications Jammed . | . . . . . Distress Signals . | . . . . . Times Spotted 29 | 1 6 5 . 17 Peak Tracking Total 17 | 1 4 2 . 17 Tactical Retreats . | . . . . . Traps | -11 -10 -10 -10 -9 ------- Run | Yrd Mat Min Exi Min Traps Triggered 1 | . 1 . . . Indirectly . | . . . . . Trap Hack Attempts . | . . . . . Triggered . | . . . . . Disarmed . | . . . . . Reprogrammed . | . . . . . Reused . | . . . . . Traps Extracted . | . . . . . Installed . | . . . . . Triggered . | . . . . . Machines | -11 -10 -10 -10 -9 ---------- Run | Yrd Mat Min Exi Min Machines Disabled 1 | . . 1 . . Max in Single Turn 1 | . . 1 . . Machines Repaired . | . . . . . Machines Dismantled . | . . . . . Machines Sabotaged . | . . . . . Overloaded Fab Kills . | . . . . . Hacking | -11 -10 -10 -10 -9 --------- Run | Yrd Mat Min Exi Min Machines Accessed 2 | . 1 1 . . Terminals 2 | . 1 1 . . Fabricators . | . . . . . Repair Stations . | . . . . . Recycling Units . | . . . . . Scanalyzers . | . . . . . Garrison Access . | . . . . . Total Hacks 3 | . 2 1 . . Successful 2 | . 1 1 . . Failed 1 | . 1 . . . Catastrophic . | . . . . . Database Lockouts . | . . . . . Manual . | . . . . . Terminals 3 | . 2 1 . . Fabricators . | . . . . . Repair Stations . | . . . . . Recycling Units . | . . . . . Scanalyzers . | . . . . . Garrison Access . | . . . . . Terminal Hacks 2 | . 1 1 . . Record 1 | . 1 . . . Zone Layout 1 | . . 1 . . Fabricator Hacks . | . . . . . Repair Station Hacks . | . . . . . Recycling Unit Hacks . | . . . . . Scanalyzer . | . . . . . Garrison Access Hacks . | . . . . . Unauthorized Hacks . | . . . . . Terminals . | . . . . . Fabricators . | . . . . . Repair Stations . | . . . . . Recycling Units . | . . . . . Scanalyzers . | . . . . . Garrison Access . | . . . . . Data Cores Recovered . | . . . . . Used . | . . . . . Hacking Detections 2 | . 1 1 . . Full Trace Events . | . . . . . Feedback Events . | . . . . . Feedback Blocked . | . . . . . Robot Schematics Acquired . | . . . . . Robots Built . | . . . . . Authchips . | . . . . . Time . | . . . . . Total Robot Build Rating . | . . . . . Part Schematics Acquired . | . . . . . Parts Built . | . . . . . Authchips . | . . . . . Time . | . . . . . Total Part Build Rating . | . . . . . Parts Repaired . | . . . . . Time . | . . . . . Parts Recycled . | . . . . . Recycled Matter . | . . . . . Retrieved Matter . | . . . . . Retrieved Components . | . . . . . Parts Scanalyzed . | . . . . . Part Schematics Acquired . | . . . . . Parts Damaged . | . . . . . Bothacking | -11 -10 -10 -10 -9 ------------ Run | Yrd Mat Min Exi Min Used RIF Installer . | . . . . . Robots Hacked . | . . . . . Non-combat . | . . . . . Combat . | . . . . . Robot Hacks Applied . | . . . . . Relay Couplers Released . | . . . . . Fabnet Peak Effective % . | . . . . . Robots Rewired . | . . . . . Allies Hacked . | . . . . . Hacks Repelled . | . . . . . Allies | -11 -10 -10 -10 -9 -------- Run | Yrd Mat Min Exi Min Total Allies 2 | . . 2 . . Largest Group 2 | . . 2 1 . Highest-Rated Group 44 | . . 44 31 . Highest-Rated Ally 31 | . . 31 31 . Total Orders . | . . . . . Ally Attacks . | . . . . . Total Damage . | . . . . . Kills . | . . . . . Allies Corrupted . | . . . . . Allies Melted . | . . . . . Intel | -11 -10 -10 -10 -9 ------- Run | Yrd Mat Min Exi Min Robot Analysis Total . | . . . . . Derelict Logs Recovered 1 | . . 1 . . Drone Launches . | . . . . . Drone Recoveries . | . . . . . Exploration | -11 -10 -10 -10 -9 ------------- Run | Yrd Mat Min Exi Min Turns Passed 973 | 198 195 296 247 37 Spaces Moved 894 | 153 145 277 302 17 Core 39 | 37 . . . 2 Treads . | . . . . . Legs 237 | 116 121 . . . Wheels 618 | . 24 277 302 15 Hover . | . . . . . Flight . | . . . . . Fastest Speed 50 | 50 80 80 80 50 Average Speed 89 | 103 113 80 80 76 Slowest Speed 120 | 120 120 80 80 80 Overloaded Moves . | . . . . . Propulsion Burnouts . | . . . . . Robots Hopped . | . . . . . Cave-ins Triggered . | . . . . . Exploration Rate (%) 34 | 7 30 55 74 7 Regions Visited 4 Branch Regions 3 Pre-discovered Areas 1 | . . 1 . . Known Exits Taken . | . . . . . Unknown Exits Taken 4 | 1 1 1 1 . Scrap Searched 2 | . . 2 . . Spaces Dug 8 | . . 8 . . Terrain Destroyed 101 | . . 63 . 38 Melee . | . . . . . Projectile . | . . . . . AOE 101 | . . 63 . 38 Terrain Rammed . | . . . . . Walls Destroyed . | . . . . . Machines Disabled . | . . . . . Actions | -11 -10 -10 -10 -9 --------- Run | Yrd Mat Min Exi Min Total 1005 | 177 168 322 307 31 Wait 4 | 1 . 2 . 1 Move 890 | 152 144 276 301 17 Hop . | . . . . . Pick Up 26 | 9 7 5 3 2 Fast Attach . | . . . . . Attach 12 | 6 3 3 . . Detach 1 | . . 1 . . Swap 5 | . 2 1 1 1 Drop 14 | . 6 5 2 1 Fire 49 | 9 5 28 . 7 Melee . | . . . . . Ram 3 | . . 1 . 2 Kick 1 | . 1 . . . Crush . | . . . . . Escape Stasis . | . . . . . Rewire . | . . . . . Trap . | . . . . . Miscellaneous . | . . . . . Route ------- -11/Scrapyard -10/Materials -10/Mines -10/Exiles -9/Mines History --------- Turn | Location | Event 2 | -11/Scrapyard | Met Revision 17 106 | -11/Scrapyard | Discovered new exit (range 8) 199 | -11/Scrapyard | Entered Materials 311 | -10/Materials | Build established: Mutant 351 | -10/Materials | Discovered new exit (range 16) 394 | -10/Materials | Entered Mines 439 | -10/Mines | Met a Derelict bent on vengeance 641 | -10/Mines | Learned location of Zion (-7) 686 | -10/Mines | Deemed a non-threat by the Exiles lab entrance 687 | -10/Mines | Discovered new exit (range 5) 690 | -10/Mines | Entered Exiles 690 | -10/Exiles | Accompanied by 1 ally 717 | -10/Exiles | Met 8R-AWN 720 | -10/Exiles | Led the pair of lost Derelicts to a safe place 731 | -10/Exiles | Met EX-HEX 776 | -10/Exiles | Met EX-DEC 798 | -10/Exiles | Visited The Gauntlet 929 | -10/Exiles | Discovered new exit (range 11) 937 | -10/Exiles | Entered Mines 938 | -9/Mines | Assembled infested the area 966 | -9/Mines | Core integrity fell below 50% 966 | -9/Mines | System corruption reached 10% 969 | -9/Mines | Core integrity fell below 20% 974 | -9/Mines | Destroyed by as-89302 with Assembled Maul Last Messages --------------- as-10181 destroyed. as-53136 destroyed. as-14280 destroyed. Wheel destroyed. Hrd. Light Armor Plating destroyed. System corrupted by crushing effect (+4). as-16653 destroyed. Wheel destroyed. System corrupted by crushing effect (+4). [Achievement: System Compromised] as-41178 destroyed. Critical hit (Destroy). Sml. Laser destroyed. as-40866 destroyed. Destroyed Asb. Hover Unit. as-13451 destroyed. System corrupted: Lgt. Ion Engine rejected. Grenade Launcher destroyed. Slammed into as-89302. [Achievement: First Step to Greatness] Map ----- +----------------------------------------------------+ | ??????????????????????????????????? | | ??????????????????????????????????? | | ??????????????????????????????????? | | ??????????????????????????????????? | | ??????????????????????????????????? | | ??????????????????????????????????? | | ??????????????????????????????????? | | ??????????????????????????????????? | | ??????????????????????????????????? | | ??????????????????????????????????? | | ??????????????????????????????????? | | ??????????????????????????????????? | | ??????????????????????????????????? | | ??????????????????????????????????? | | ??????????????????????????????????? | | ??????????????????????????????????? | | ?????????????????????????#####????? | | ????????????????????????## ####?? | | ???????????????????????## ##? | | ??????????????????????## #? | | ???????????? ????????## #? | | ??????????? ?????# #?? | | ???????????? ???## ###?? | | ???????????? ??## ##???? | | ??????????? ?## a!%#????? | | ??????????? #@ #????? | | ??????????? #????? | | ??????????????# aa##????? | | ??????????????### % ##?????? | | ????????????????## #??????? | | ?????????????????# #??????? | | ?????????????????### ## ##??????? | | ???????????????????###?####???????? | | ??????????????????????????????????? | | ??????????????????????????????????? | | ??????????????????????????????????? | | ??????????????????????????????????? | | ??????????????????????????????????? | | ??????????????????????????????????? | | ??????????????????????????????????? | | ??????????????????????????????????? | | ??????????????????????????????????? | | ??????????????????????????????????? | | ??????????????????????????????????? | | ??????????????????????????????????? | | ??????????????????????????????????? | | ??????????????????????????????????? | | ??????????????????????????????????? | | ??????????????????????????????????? | | ??????????????????????????????????? | +----------------------------------------------------+ Best States ------------- Heat Dissipation 35 Energy Generation 10 Energy Capacity 125 Matter Stores 300 Matter Capacity 300 Sight Range 16 Terrain Scan Density 10 ECM Strength 1 Armor Coverage 150 Evasion (%) 55 Targeting Accuracy 5 Item Schematics ----------------- None Robot Schematics ------------------ None Fabricated ------------ Nothing Alien Tech Used ----------------- None Achievements -------------- First Step to Greatness Maybe Next Time I'll Detach My Launcher Quick And Dirty System Compromised Tourist Uninvited Guest Challenges ------------ None Game ------ Seed DimensionalSmallSlayer Manual? 0 Play Time 00:28:39 Cumulative 0.4 hours Start 2024.04.01 @ 15:33:43 End 2024.04.01 @ 16:05:55 Sessions 1 Manual Loads 0 Difficulty Rogue Special Mode None Game No. 1 Rogue 1 Adventurer 0 Explorer 0 Win Type - Total 0 Types 0/0/0/0/0/0/0/0/0 Lore% 0 Gallery% 1 Achievement% 2 Wizard Run 0 Options --------- Layout 1 ASCII 0 Keyboard 0 Movement Numpad Keybinds 0 Fullscreen 1 Font 20/SmallcapsGlow Map View 50x35 Zoom Use 0% Tactical HUD 0 Map Filters NONE Filters NONE Steam 1 RUN: 437a7b3b-4e1e-421c-aa47-75200ada0d91